fUSD/lending_fUSD_20240803
["ID","MTS","AMOUNT","RATE_DAILY","PERIOD"]
[334006940,1722672713115,-1037.63,0.00019178,2]
[334006941,1722672713124,-1737.33,0.00019178,2]
[334006942,1722672713133,-1095.94,0.00019178,2]
[334006943,1722672713143,-1906.6,0.00019178,2]
[334006944,1722672713152,-500.0,0.00019178,2]
[334006945,1722672713162,-500.0,0.00019178,2]
[334006946,1722672713172,-663.02,0.00019178,2]
[334006947,1722672713182,-602.45,0.00019178,2]
[334006948,1722672713191,-1104.11,0.00019178,2]
[334006949,1722672713201,-500.0,0.00019178,2]
[334006950,1722672713211,-3795.21,0.00019178,2]
[334006951,1722672713220,-150.48722973,0.00019197,2]
[334006952,1722672713229,-11720.37306,0.00019257,2]
[334006953,1722672713239,-420.52,0.0001926,2]
[334006954,1722672713248,-152.4,0.00019265,2]
[334006955,1722672713258,-300.0,0.00019273,2]
[334006956,1722672713267,-150.0,0.00019274,2]
[334006957,1722672713277,-301.13307318,0.00019282,2]
[334006958,1722672713287,-300.0,0.00019301,2]
[334006959,1722672713296,-207.30049476,0.00019319,2]
[334006960,1722672713306,-1500.0,0.0001933,2]
[334006961,1722672713315,-1513.16948223,0.00019331,2]
[334006962,1722672713325,-150.0,0.00019352,2]
[334006963,1722672713335,-150.0,0.00019358,2]
[334006964,1722672713344,-17400.33901699,0.00019394,2]
[334006965,1722672713354,-300.0,0.00019398,2]
[334006966,1722672713363,-2000.0,0.000194,2]
[334006967,1722672713372,-213751.79244064,0.000194,2]
[334006968,1722672713400,-2815.26216506,0.000194,2]
[334006969,1722672715969,-1356.08513294,0.0001619,2]
[334006970,1722672715981,-386.34527195,0.0001619,2]
[334006971,1722672715996,-2434.07329511,0.0001619,2]
[334006972,1722672716007,-545.922681,0.0001639,2]
[334006973,1722672716017,-545.922681,0.00016438,2]
[334006974,1722672716027,-500.0,0.00016438,2]
[334006975,1722672716036,-545.922681,0.00016438,2]
[334006976,1722672716046,-545.922681,0.00016438,2]
[334006977,1722672716055,-545.922681,0.00016438,2]
[334006978,1722672716064,-545.922681,0.00016438,2]
[334006979,1722672716074,-545.922681,0.00016438,2]
[334006980,1722672716083,-545.922681,0.00016438,2]
[334006981,1722672716093,-545.922681,0.00016438,2]
[334006982,1722672716103,-369.2181373,0.00016712,2]
[334006983,1722672716123,-545.922687,0.00016438,2]
[334006984,1722672716132,-100.031324,0.00016712,2]
[334006985,1722672716145,-30.7505387,0.00016712,2]
[334006986,1722672716154,-500.0,0.00016986,2]
[334006987,1722672716164,-500.0,0.0001726,2]
[334006988,1722672716173,-500.0,0.00017534,2]
[334006989,1722672716183,-500.0,0.00017808,2]
[334006990,1722672716192,-500.0,0.00018082,2]
[334006991,1722672716202,-500.0,0.00018356,2]
[334006992,1722672716211,-500.0,0.0001863,2]
[334006993,1722672716220,-473.92255416,0.00018904,2]
[334006994,1722672716231,-26.07744584,0.00018904,2]
[334006995,1722672716241,-740.71325917,0.000194,2]
[334006996,1722672720554,1000.0,9.093e-05,2]
[334006997,1722672724475,2000.0,9.093e-05,2]
[334006998,1722672784360,227.60153513,9.093e-05,2]
[334006999,1722672786823,300.27841868,9.093e-05,2]
[334007000,1722672786855,2563.43363738,9.093e-05,2]
[334007001,1722672789175,485.31544336,9.093e-05,2]
[334007002,1722672804393,155.09453851,9.093e-05,2]
[334007003,1722672810536,411.43435845,9.093e-05,2]
[334007004,1722672819066,3068.60047877,9.093e-05,2]
[334007005,1722672887365,227.60153513,9.093e-05,2]
[334007006,1722672926307,3068.60047877,9.093e-05,2]
[334007007,1722673037334,3066.75282877,9.093e-05,2]
[334007009,1722673406305,222.0,9.093e-05,2]
[334007015,1722673782678,-802.30355537,0.00010822,2]
[334007016,1722673782700,-352.43506564,0.000109,2]
[334007017,1722673782721,-855.0,0.00010921,2]
[334007018,1722673782743,-579.45341066,0.00010922,2]
[334007019,1722673782765,-1859.96536232,0.00010922,2]
[334007020,1722673782786,-341.75169428,0.00010922,2]
[334007021,1722673782808,-223.82,0.00010959,2]
[334007022,1722673782829,-512.975,0.00010959,2]
[334007023,1722673782850,-300.0,0.00010996,2]
[334007024,1722673782876,-1122.02426798,0.00010997,2]
[334007025,1722673782899,-181.14543335,0.00010999,2]
[334007026,1722673782921,-500.0,0.00010999,2]
[334007027,1722673782945,-500.0,0.00010999,2]
[334007028,1722673782966,-500.0,0.00010999,2]
[334007029,1722673782988,-626.2983805,0.00010999,2]
[334007030,1722673783010,-266.72307173,0.00010999,2]
[334007031,1722673783032,-596.11963982,0.00010999,2]
[334007032,1722673783059,-994781.8803607,0.00011,2]
[334007041,1722673831702,-272.16526523,0.000109,2]
[334007042,1722673831714,-363.14311833,0.000109,2]
[334007043,1722673831723,-8.45361167,0.000109,2]
[334007044,1722673831756,-940.19078666,0.000109,2]
[334007045,1722673831767,-191.10097478,0.000109,2]
[334007046,1722673831777,-200.0,0.00010973,2]
[334007047,1722673831786,-153.55,0.0001099,2]
[334007048,1722673831795,-153.55,0.0001099,2]
[334007049,1722673831805,-108.57501159,0.0001099,2]
[334007050,1722673831890,-44.97498841,0.0001099,2]
[334007051,1722673831899,-205.02501159,0.00011,2]
[334007052,1722673831911,-562.4996314,0.00011,2]
[334007053,1722673831938,-2000.0,0.00011,2]
[334007054,1722673832009,-2114.71810621,0.00011,2]
[334007057,1722673837641,-3371.18811094,0.00011,2]
[334007058,1722673837653,-541.830076,0.00011,2]
[334007059,1722673837700,-26986.67311596,0.00011,2]
[334007060,1722673837758,-1695.46549767,0.00011,2]
[334007070,1722673838944,-490031.94256589,0.00011,2]
[334007071,1722673838957,-374.94082365,0.00011,2]
[334007072,1722673838972,-26447.38168852,0.00011,2]
[334007074,1722673838984,-5979.78453988,0.00011,2]
[334007075,1722673838996,-15716.19168783,0.00011,2]
[334007097,1722673839843,-62213.28788165,0.00011,2]
[334007098,1722673839903,-659.64728773,0.00011,2]
[334007099,1722673839964,-495.55389865,0.00011,2]
[334007100,1722673840025,-140414.23828643,0.00011,2]
[334007101,1722673840037,-1751.0,0.00011,2]
[334007102,1722673840048,-1406.22055426,0.00011,2]
[334007103,1722673840059,-1197.8095201,0.00011,2]
[334007104,1722673840086,-6584.77830081,0.00011,2]
[334007105,1722673840142,-6773.5,0.00011,2]
[334007106,1722673840204,-4547.08758781,0.00011,2]
[334007107,1722673840215,-3604.54927796,0.00011,2]
[334007108,1722673840262,-802.81851793,0.00011,2]
[334007109,1722673840273,-7283.19063246,0.00011,2]
[334007120,1722673842787,-28499.999915,0.00011,2]
[334007121,1722673842798,-1496.0,0.00011,2]
[334007122,1722673842846,-2790.39273197,0.00011,2]
[334007123,1722673842905,-513.18500005,0.00011,2]
[334007212,1722673844987,-16130.6152453,0.00011,2]
[334007254,1722673846653,-234869.7369746,0.00011,2]
[334007255,1722673846664,-1667.5,0.00011,2]
[334007290,1722675031940,-160.66,0.00010697,2]
[334007292,1722675031952,-200.0,0.000107,2]
[334007293,1722675031962,-300.0,0.00010899,2]
[334007294,1722675031972,-1788.2658045,0.000109,2]
[334007295,1722675032114,-4384.17091723,0.000109,2]
[334007296,1722675032161,-3264.51941235,0.000109,2]
[334007297,1722675032172,-1824.51861668,0.000109,2]
[334007298,1722675032182,-589.42593383,0.000109,2]
[334007299,1722675032191,-1032.8449803,0.000109,2]
[334007300,1722675032207,-150.0,0.00010986,2]
[334007301,1722675032217,-403.21046919,0.00011,2]
[334007352,1722675037885,-298.41728368,0.00011,2]
[334007376,1722675038502,-3074.89708187,0.00011,2]
[334007385,1722675038914,-6020.88086009,0.00011,2]
[334007387,1722675038927,-53945.499317,0.00011,2]
[334007516,1722675040216,-9096.64373114,0.00011,2]
[334007518,1722675040228,-8947.21879473,0.00011,2]
[334007519,1722675040244,-8943.78386462,0.00011,2]
[334007520,1722675040255,-9077.54866152,0.00011,2]
[334007521,1722675040267,-8943.84023489,0.00011,2]
[334007538,1722675046233,-334.19770443,0.000109,2]
[334007539,1722675046246,-328.95348053,0.00011,2]
[334007540,1722675046403,-463.30618444,0.00011,2]
[334007578,1722676116808,-855.0,9.177e-05,2]
[334007579,1722676116843,-523.22,9.178e-05,2]
[334007580,1722676116872,-51.85501295,9.18e-05,2]
[334007581,1722676166742,-363.77628039,9.18e-05,2]
[334007582,1722676166769,-733.66115961,9.18e-05,2]
[334007583,1722676191731,-110.83409011,9.18e-05,2]
[334007584,1722676191758,-790.55097652,9.18e-05,2]
[334007585,1722676191786,-291.41264656,9.18e-05,2]
[334007586,1722676191813,-871.68539753,9.18e-05,2]
[334007587,1722676191841,-1753.2512681,9.18e-05,2]
[334007588,1722676191881,-1315.34921067,9.18e-05,2]
[334007589,1722676192275,-961.8087359,9.18e-05,2]
[334007590,1722676192305,-155.0,9.18e-05,2]
[334007591,1722676192337,-155.0,9.18e-05,2]
[334007592,1722676192367,-1230.57643225,9.18e-05,2]
[334007593,1722676192400,-37.49344281,9.18e-05,2]
[334007594,1722676192429,-155.0,9.18e-05,2]
[334007595,1722676192458,-155.19797502,9.18e-05,2]
[334007596,1722676192486,-236.47420107,9.18e-05,2]
[334007597,1722676192515,-275.86088738,9.18e-05,2]
[334007615,1722676232192,-300.0,9.179e-05,2]
[334007616,1722676232202,-416.8846113,9.18e-05,2]
[334007617,1722676232211,-155.09453851,9.18e-05,2]
[334007618,1722676232220,-158.95775395,9.18e-05,2]
[334007619,1722676232229,-1189.06309504,9.18e-05,2]
[334007620,1722676232250,-956.69375819,9.18e-05,2]
[334007621,1722676232262,-3001.32405636,9.18e-05,2]
[334007622,1722676232309,-199.79893993,9.18e-05,2]
[334007623,1722676232318,-442.59880127,9.18e-05,2]
[334007624,1722676232329,-42.71664209,9.18e-05,2]
[334007625,1722676232403,-1370.46929519,9.18e-05,2]
[334007626,1722676232412,-7573.93759928,9.18e-05,2]
[334007627,1722676232422,-425.62102106,9.18e-05,2]
[334007628,1722676232431,-227.60153513,9.18e-05,2]
[334007629,1722676232440,-7185.62864799,9.18e-05,2]
[334007630,1722676232451,-599.10370968,9.18e-05,2]
[334007631,1722676232461,-7573.93759928,9.18e-05,2]
[334007632,1722676232470,-200.0,9.18e-05,2]
[334007633,1722676232479,-411.66433211,9.18e-05,2]
[334007634,1722676232488,-512.975,9.18e-05,2]
[334007636,1722676232497,-267.43451847,0.00010247,2]
[334007637,1722676232506,-267.43451845,0.00010349,2]
[334007638,1722676232518,-267.43451845,0.0001045,2]
[334007639,1722676232527,-400.0,0.0001055,2]
[334007640,1722676232537,-1242.0,0.000106,5]
[334007641,1722676232546,-370.446,0.00010844,2]
[334007643,1722676232556,-10201.58127572,0.000109,2]
[334007645,1722676232566,-903.73935778,0.000109,2]
[334007646,1722676232575,-530.48334051,0.000109,2]
[334007647,1722676232584,-1500.0,0.00010959,5]
[334007648,1722676232593,-15580.96,0.00010976,2]
[334007649,1722676232602,-150.0,0.00010998,2]
[334007650,1722676232612,-1817.57578316,0.00010999,3]
[334007651,1722676232621,-5539.45,0.00010999,2]
[334007652,1722676232630,-574.18,0.00010999,2]
[334007653,1722676232642,-179186.12793685,0.00011,2]
[334007654,1722676232658,-578.5596183,0.00011,2]
[334007655,1722676232669,-700.0,0.00011,2]
[334007656,1722676232688,-678.69156372,0.00011,2]
[334007657,1722676232700,-2331.88614797,0.00011,2]
[334007658,1722676232713,-1419.38375641,0.00011,2]
[334007660,1722676238104,-18580.03199997,0.00011,2]
[334007672,1722676239335,-127511.39999999,0.00011,2]
[334007673,1722676239347,-3513.2,0.00011,2]
[334007674,1722676239358,-14667.77508838,0.00011,2]
[334007675,1722676239368,-2563.7675372,0.00011,2]
[334007676,1722676239378,-1284.22835153,0.00011,2]
[334007677,1722676239387,-456.23,0.00011,2]
[334007678,1722676239396,-499.99,0.00011,2]
[334007679,1722676239406,-271.02,0.00011,2]
[334007680,1722676239415,-579.73,0.00011,2]
[334007681,1722676239425,-1364.3383,0.00011,2]
[334007682,1722676239435,-299.99,0.00011,2]
[334007683,1722676239445,-530.69,0.00011,2]
[334007684,1722676239454,-276.01576717,0.00011022,2]
[334007685,1722676239464,-2000.0,0.00011024,2]
[334007686,1722676239474,-2175.02902723,0.00011105,2]
[334007687,1722676239484,-686.56648555,0.00011105,2]
[334007688,1722676239494,-400.85725149,0.00011105,2]
[334007689,1722676239503,-250.0,0.00011116,2]
[334007690,1722676239513,-953.47466833,0.00011127,2]
[334007691,1722676239524,-370.68374347,0.00011127,2]
[334007692,1722676239534,-291.41264656,0.00011127,2]
[334007693,1722676239543,-961.52458604,0.00011127,2]
[334007694,1722676239553,-871.68539753,0.00011127,2]
[334007695,1722676239562,-523.22,0.00011442,2]
[334007696,1722676239571,-3147.62,0.00011998,2]
[334007697,1722676239582,-550.0,0.00012,2]
[334007698,1722676239591,-10201.58127567,0.00012456,2]
[334007699,1722676239601,-530.48334043,0.00012456,2]
[334007700,1722676239611,-903.73935772,0.0001246,2]
[334007701,1722676239620,-155.0,0.0001254,2]
[334007702,1722676239633,-600.0,0.00012553,2]
[334007703,1722676239643,-1852.42,0.00012747,2]
[334007704,1722676239654,-250.0,0.00012756,2]
[334007705,1722676239663,-258.62,0.00012851,2]
[334007706,1722676239674,-306.54421766,0.00012855,2]
[334007707,1722676239683,-204.83236979,0.00012924,2]
[334007708,1722676239693,-1000.0,0.00012936,2]
[334007709,1722676239702,-236.44533916,0.00012995,2]
[334007710,1722676239714,-152.4,0.0001303,2]
[334007711,1722676239726,-891.73406443,0.00013165,2]
[334007712,1722676239735,-947.72324924,0.00013165,2]
[334007713,1722676239745,-156.58615903,0.00013197,2]
[334007714,1722676239755,-35697.33254384,0.00013283,2]
[334007715,1722676239764,-386.23175874,0.00013283,2]
[334007716,1722676239774,-155.0,0.00013302,2]
[334007717,1722676239784,-699.14,0.00013699,2]
[334007718,1722676239794,-523.22,0.00013706,2]
[334007719,1722676239803,-339.04,0.00013716,2]
[334007720,1722676239813,-322.45,0.00013973,2]
[334007721,1722676239823,-153.55,0.00014001,2]
[334007722,1722676239832,-10201.58127567,0.00014011,2]
[334007723,1722676239842,-530.48334043,0.00014011,2]
[334007724,1722676239852,-903.73935772,0.00014019,2]
[334007725,1722676239862,-507.62234201,0.00014261,2]
[334007726,1722676239871,-156.58615902,0.00014335,2]
[334007727,1722676239880,-699.14,0.00014384,2]
[334007728,1722676239890,-1000.0,0.00014554,2]
[334007729,1722676239900,-724.79391635,0.00014894,2]
[334007730,1722676239909,-155.0,0.00014999,2]
[334007731,1722676239918,-155.0,0.00014999,2]
[334007732,1722676239927,-155.09187661,0.00015,2]
[334007733,1722676239937,-20029.48089212,0.00015,7]
[334007734,1722676239947,-3387.85851264,0.00015022,2]
[334007735,1722676239957,-699.14,0.00015068,2]
[334007736,1722676239966,-339.04,0.00015431,2]
[334007737,1722676239976,-156.58615902,0.00015474,2]
[334007738,1722676239986,-4828.93364222,0.00015567,2]
[334007739,1722676239999,-5372.64763345,0.00015567,2]
[334007740,1722676240009,-530.48334043,0.00015567,2]
[334007741,1722676240019,-98.95500163,0.00015579,2]
[334007742,1722676240401,-363.66562399,9.18e-05,2]
[334007743,1722676240411,-345.47505909,0.00011127,2]
[334007744,1722676240423,-1401.67945,0.00011127,2]
[334007745,1722676240435,-1321.44596968,0.00011127,2]
[334007746,1722676240446,-358.0040303,0.00015579,2]
[334007747,1722676240471,-446.78032579,0.00015579,2]
[334007748,1722676240480,-699.14,0.00015753,2]
[334007749,1722676240491,-200.0,0.000158,5]
[334007750,1722676240500,-174.77264532,0.000159,2]
[334007751,1722676240510,-500.0,0.000159,5]
[334007752,1722676240519,-315.54718899,0.000159,2]
[334007753,1722676240531,-619.98845412,0.000159,2]
[334007754,1722676240540,-179.77556321,0.000159,2]
[334007755,1722676240549,-523.22,0.00015969,2]
[334007756,1722676240559,-153.55,0.0001599,2]
[334007757,1722676240568,-168.05434707,0.00015997,2]
[334007758,1722676240578,-500.0,0.00015999,2]
[334007759,1722676240587,-266.72307173,0.00015999,2]
[334007760,1722676240597,-596.11963982,0.00015999,2]
[334007761,1722676240606,-350.72522081,0.00015999,2]
[334007762,1722676240616,-629.0,0.00016,2]
[334007763,1722676240629,-155.0,0.00016,2]
[334007764,1722676240640,-556890.0,0.00016,2]
[334007765,1722676240650,-1364.3383,0.00016,2]
[334007766,1722676240660,-619.9884541,0.00016119,2]
[334007767,1722676240670,-1000.0,0.00016171,2]
[334007768,1722676240679,-619.9884541,0.00016338,2]
[334007769,1722676240689,-10000.0,0.00016338,2]
[334007770,1722676240698,-315.54718891,0.00016355,2]
[334007771,1722676240709,-150.0,0.00016388,2]
[334007772,1722676240719,-281.42,0.00016388,2]
[334007773,1722676240729,-425.87,0.00016388,2]
[334007774,1722676240738,-150.0,0.00016388,2]
[334007775,1722676240747,-530.37,0.00016388,2]
[334007776,1722676240757,-550.0,0.000164,2]
[334007778,1722676240767,-500.0,0.00016425,2]
[334007780,1722676240777,-168.05434707,0.00016435,2]
[334007781,1722676240787,-181.14543335,0.00016437,2]
[334007782,1722676240797,-500.0,0.00016437,2]
[334007783,1722676240807,-291.81839872,0.00016437,2]
[334007784,1722676240816,-500.0,0.00016437,2]
[334007785,1722676240826,-500.0,0.00016437,2]
[334007786,1722676240835,-500.0,0.00016437,2]
[334007787,1722676240844,-530.49641445,0.00016438,2]
[334007788,1722676240854,-500.0,0.00016438,2]
[334007789,1722676240863,-500.0,0.00016438,2]
[334007790,1722676240872,-599.88,0.00016438,2]
[334007791,1722676240882,-500.0,0.00016438,2]
[334007792,1722676240891,-500.0,0.00016438,2]
[334007793,1722676240901,-500.0,0.00016438,2]
[334007794,1722676240910,-579.01,0.00016438,2]
[334007795,1722676241075,-224.42129279,0.00016438,2]
[334007796,1722676241090,-500.0,0.00016438,2]
[334007797,1722676241100,-500.0,0.00016438,2]
[334007798,1722676241110,-500.0,0.00016438,2]
[334007799,1722676241119,-500.0,0.00016438,2]
[334007800,1722676241129,-500.0,0.00016438,2]
[334007801,1722676241139,-500.0,0.00016438,2]
[334007802,1722676241148,-500.0,0.00016438,2]
[334007803,1722676241158,-500.0,0.00016438,2]
[334007804,1722676241168,-500.0,0.00016438,2]
[334007805,1722676241177,-500.0,0.00016438,2]
[334007806,1722676241187,-500.0,0.00016438,2]
[334007807,1722676241196,-500.0,0.00016438,2]
[334007808,1722676241205,-500.0,0.00016438,2]
[334007809,1722676241214,-533.65,0.00016438,2]
[334007810,1722676241224,-500.0,0.00016438,2]
[334007811,1722676241233,-611.89,0.00016438,2]
[334007812,1722676241242,-500.0,0.00016438,2]
[334007813,1722676241252,-500.0,0.00016438,2]
[334007814,1722676241261,-500.72648302,0.00016438,2]
[334007815,1722676241271,-500.0,0.00016438,2]
[334007816,1722676241282,-42.98877263,0.00016438,2]
[334007817,1722676241306,-223.82,0.00010959,2]
[334007818,1722676241315,-457.01122737,0.00016438,2]
[334007819,1722676241324,-500.0,0.00016438,2]
[334007820,1722676241334,-500.0,0.00016438,2]
[334007821,1722676241344,-500.0,0.00016438,2]
[334007822,1722676241353,-500.0,0.00016438,2]
[334007823,1722676241363,-500.0,0.00016438,2]
[334007824,1722676241372,-55.16941757,0.00016438,2]
[334007839,1722676243117,-205.82797813,0.00011127,2]
[334007841,1722676243126,-35697.33254384,0.00013283,2]
[334007843,1722676243136,-8292.66,0.00013333,2]
[334007845,1722676243146,-444.83058243,0.00016438,2]
[334007847,1722676243156,-500.0,0.00016438,2]
[334007849,1722676243165,-500.0,0.00016438,2]
[334007851,1722676243174,-500.0,0.00016438,2]
[334007852,1722676243183,-500.0,0.00016438,2]
[334007853,1722676243193,-500.0,0.00016438,2]
[334007854,1722676243202,-500.0,0.00016438,2]
[334007855,1722676243212,-558.48,0.00016438,2]
[334007856,1722676243222,-500.0,0.00016438,2]
[334007857,1722676243231,-500.0,0.00016438,2]
[334007858,1722676243242,-500.0,0.00016438,2]
[334007859,1722676243251,-500.0,0.00016438,2]
[334007860,1722676243260,-544.1768174,0.00016438,2]
[334007861,1722676243269,-500.0,0.00016438,2]
[334007862,1722676243280,-500.0,0.00016438,2]
[334007863,1722676243290,-500.0,0.00016438,2]
[334007864,1722676243299,-500.0,0.00016438,2]
[334007865,1722676243308,-500.0,0.00016438,2]
[334007866,1722676243318,-500.0,0.00016438,2]
[334007867,1722676243327,-500.0,0.00016438,2]
[334007868,1722676243337,-500.0,0.00016438,2]
[334007869,1722676243346,-500.0,0.00016438,2]
[334007870,1722676243356,-500.0,0.00016438,2]
[334007871,1722676243367,-500.0,0.00016438,2]
[334007872,1722676243377,-500.0,0.00016438,2]
[334007873,1722676243386,-500.0,0.00016438,2]
[334007874,1722676243396,-500.0,0.00016438,2]
[334007875,1722676243405,-500.0,0.00016438,2]
[334007877,1722676243415,-500.0,0.00016438,2]
[334007879,1722676243424,-500.0,0.00016438,2]
[334007881,1722676243434,-500.0,0.00016438,2]
[334007883,1722676243443,-500.0,0.00016438,2]
[334007884,1722676243454,-500.0,0.00016438,2]
[334007885,1722676243463,-500.0,0.00016438,2]
[334007886,1722676243472,-500.0,0.00016438,2]
[334007887,1722676243482,-500.0,0.00016438,2]
[334007888,1722676243491,-500.0,0.00016438,2]
[334007889,1722676243501,-500.0,0.00016438,2]
[334007890,1722676243510,-500.0,0.00016438,2]
[334007891,1722676243520,-500.0,0.00016438,2]
[334007892,1722676243531,-500.0,0.00016438,2]
[334007893,1722676243541,-500.0,0.00016438,2]
[334007894,1722676243551,-500.0,0.00016438,2]
[334007895,1722676243561,-500.0,0.00016438,2]
[334007896,1722676243571,-500.0,0.00016438,2]
[334007897,1722676243581,-500.0,0.00016438,2]
[334007899,1722676243591,-500.0,0.00016438,2]
[334007901,1722676243600,-500.0,0.00016438,2]
[334007903,1722676243610,-500.0,0.00016438,2]
[334007905,1722676243620,-500.0,0.00016438,2]
[334007907,1722676243633,-500.0,0.00016438,2]
[334007908,1722676243643,-500.0,0.00016438,2]
[334007909,1722676243652,-500.0,0.00016438,2]
[334007910,1722676243662,-500.0,0.00016438,2]
[334007911,1722676243671,-500.0,0.00016438,2]
[334007912,1722676243681,-500.0,0.00016438,2]
[334007913,1722676243690,-500.0,0.00016438,2]
[334007914,1722676243700,-500.0,0.00016438,2]
[334007915,1722676243710,-500.0,0.00016438,2]
[334007916,1722676243720,-500.0,0.00016438,2]
[334007917,1722676243730,-500.0,0.00016438,2]
[334007918,1722676243739,-500.0,0.00016438,2]
[334007919,1722676243748,-500.0,0.00016438,2]
[334007920,1722676243758,-500.0,0.00016438,2]
[334007921,1722676243768,-500.0,0.00016438,2]
[334007922,1722676243778,-500.0,0.00016438,2]
[334007923,1722676243788,-682.09,0.00016438,2]
[334007924,1722676243797,-500.0,0.00016438,2]
[334007925,1722676243807,-500.0,0.00016438,2]
[334007926,1722676243816,-500.0,0.00016438,2]
[334007927,1722676243825,-500.0,0.00016438,2]
[334007928,1722676243835,-500.0,0.00016438,2]
[334007929,1722676243844,-500.0,0.00016438,2]
[334007930,1722676243854,-500.0,0.00016438,2]
[334007931,1722676243863,-500.0,0.00016438,2]
[334007932,1722676243872,-500.0,0.00016438,2]
[334007933,1722676243882,-500.0,0.00016438,2]
[334007934,1722676243891,-500.0,0.00016438,2]
[334007935,1722676243900,-500.0,0.00016438,2]
[334007936,1722676243910,-500.0,0.00016438,2]
[334007937,1722676243919,-500.0,0.00016438,2]
[334007938,1722676243928,-500.0,0.00016438,2]
[334007939,1722676243938,-500.0,0.00016438,2]
[334007940,1722676243947,-500.0,0.00016438,2]
[334007941,1722676243956,-500.0,0.00016438,2]
[334007942,1722676243966,-500.0,0.00016438,2]
[334007943,1722676243975,-500.0,0.00016438,2]
[334007944,1722676243985,-500.0,0.00016438,2]
[334007945,1722676243995,-500.0,0.00016438,2]
[334007946,1722676244004,-500.0,0.00016438,2]
[334007947,1722676244013,-500.0,0.00016438,2]
[334007948,1722676244023,-500.0,0.00016438,2]
[334007949,1722676244033,-500.0,0.00016438,2]
[334007950,1722676244042,-500.0,0.00016438,2]
[334007951,1722676244052,-1014.69,0.00016438,2]
[334007952,1722676244062,-647.03949953,0.00016438,2]
[334007953,1722676244071,-500.0,0.00016438,2]
[334007954,1722676244082,-500.0,0.00016438,2]
[334007955,1722676244091,-500.0,0.00016438,2]
[334007956,1722676244100,-500.0,0.00016438,2]
[334007957,1722676244110,-500.0,0.00016438,2]
[334007958,1722676244120,-500.0,0.00016438,2]
[334007959,1722676244131,-500.0,0.00016438,2]
[334007960,1722676244140,-500.0,0.00016438,2]
[334007961,1722676244152,-500.0,0.00016438,2]
[334007962,1722676244162,-500.0,0.00016438,2]
[334007963,1722676244172,-500.0,0.00016438,2]
[334007964,1722676244181,-500.0,0.00016438,2]
[334007965,1722676244191,-538.80639495,0.00016438,2]
[334007966,1722676244201,-903.81,0.00016438,2]
[334007967,1722676244211,-500.0,0.00016438,2]
[334007968,1722676244222,-925.94,0.00016438,2]
[334007969,1722676244232,-500.0,0.00016438,2]
[334007970,1722676244242,-500.0,0.00016438,2]
[334007971,1722676244253,-500.0,0.00016438,2]
[334007972,1722676244263,-500.0,0.00016438,2]
[334007973,1722676244273,-500.0,0.00016438,2]
[334007974,1722676244284,-500.0,0.00016438,2]
[334007975,1722676244293,-500.0,0.00016438,2]
[334007976,1722676244303,-500.0,0.00016438,2]
[334007977,1722676244312,-500.0,0.00016438,2]
[334007978,1722676244321,-500.0,0.00016438,2]
[334007979,1722676244330,-500.0,0.00016438,2]
[334007980,1722676244340,-515.52,0.00016438,2]
[334007981,1722676244350,-500.0,0.00016438,2]
[334007982,1722676244360,-500.0,0.00016438,2]
[334007983,1722676244370,-500.0,0.00016438,2]
[334007984,1722676244379,-500.0,0.00016438,2]
[334007985,1722676244389,-500.0,0.00016438,2]
[334007986,1722676244398,-500.0,0.00016438,2]
[334007987,1722676244407,-500.0,0.00016438,2]